bitfinex-derivatives/quotes_ETHF0:USTF0_20250903
["timestamp","ask_amount","ask_price","bid_price","bid_amount"]
[1756859953394,0.5165,4325.4,4325.3,0.9712]
[1756859953594,0.7193,4325.4,4325.3,0.651]
[1756859956694,0.7193,4325.4,4325.3,0.4462]
[1756859959790,0.7193,4325.4,4325.3,0.237]
[1756859960392,0.7193,4325.4,4325.3,0.4462]
[1756859960600,0.7193,4325.4,4325.3,0.651]
[1756859961990,0.7193,4325.4,4325.3,0.9712]
[1756859962194,0.3053,4325.4,4325.3,0.9712]
[1756859962795,0.5165,4325.4,4325.3,0.9712]
[1756859966805,0.7193,4325.4,4325.3,0.237]
[1756859967001,0.7193,4325.4,4325.3,0.4462]
[1756859967490,0.7193,4325.4,4325.3,0.651]
[1756859968697,0.1234,4325.5,4325.1,3.2078]
[1756859968899,0.414,4325.2,4325.1,0.4462]
[1756859969206,3.2078,4325.9,4325.1,0.9712]
[1756859969505,3.43899,4325.9,4325.1,0.9712]
[1756859969705,0.7193,4325.2,4325.1,0.9712]
[1756859970003,0.7193,4325.2,4325.1,0.651]
[1756859971806,0.5165,4325.2,4325.1,0.9712]
[1756859972406,0.3053,4325.2,4325.1,0.9712]
[1756859972704,0.5165,4325.2,4325.1,0.9712]
[1756859973004,0.3053,4325.8,4325.2,0.3202]
[1756859973202,0.7193,4325.8,4325.7,0.2092]
[1756859974802,0.7193,4325.8,4325.6,0.237]
[1756859976207,0.414,4325.8,4325.0,4.43679165]
[1756859976404,0.1234,4325.5,4325.1,0.237]
[1756859976706,0.2112,4325.5,4325.4,0.7342]
[1756859977107,0.5165,4325.5,4325.4,0.7342]
[1756859977807,0.7193,4325.5,4325.4,0.7342]
[1756859978200,0.7193,4325.5,4325.4,0.414]
[1756859980310,0.3053,4325.5,4325.4,0.7342]
[1756859980704,3.2078,4326.4,4325.4,4.414]
[1756859981011,0.5165,4326.3,4326.2,0.7342]
[1756859981213,0.5165,4326.3,4326.2,0.9712]
[1756859983098,0.7173,4326.3,4326.2,0.9712]
[1756859984905,0.7173,4326.3,4326.2,0.4462]
[1756859985103,0.7173,4326.3,4326.2,0.6564]
[1756859985510,0.3053,4326.3,4326.2,0.9709]
[1756859985807,0.5065,4326.8,4326.7,0.4182]
[1756859986111,0.5065,4326.8,4326.7,4.1775]
[1756859986514,0.3021,4326.8,4326.7,4.1775]
[1756859986808,0.7073,4327.4,4327.3,0.4182]
[1756859987014,0.7073,4327.2,4327.1,0.237]
[1756859987408,0.7073,4327.2,4327.1,0.445]
[1756859988808,0.7073,4327.2,4327.1,0.9697]
[1756859989412,0.7073,4327.2,4327.1,0.6552]
[1756859990708,0.7073,4327.2,4326.7,3.2078]
[1756859990910,0.4052,4326.8,4326.5,0.237]
[1756859991113,0.4052,4326.6,4326.5,0.237]
[1756859991311,0.7073,4326.6,4326.5,0.237]
[1756859991614,0.5065,4326.6,4326.5,0.6552]
[1756859991817,0.3021,4326.6,4326.5,4.1775]
[1756859992619,0.5065,4326.6,4326.5,4.1775]
[1756859992815,0.7073,4326.6,4326.5,0.9697]
[1756859993114,0.7073,4326.6,4326.5,0.6552]
[1756859994915,0.7073,4326.6,4326.5,0.445]
[1756859996709,0.7073,4326.6,4326.5,0.6552]
[1756859997112,0.7073,4326.6,4326.5,0.237]
[1756859997513,0.127,4326.5,4326.3,5.335]
[1756859997717,0.8343,4326.5,4326.4,0.237]
[1756859999116,0.7073,4326.5,4326.4,0.445]
[1756859999714,0.8343,4326.5,4326.4,0.237]
[1756860000113,0.8343,4326.5,4325.7,44.78227809]
[1756860000318,0.4052,4325.9,4325.8,0.4182]
[1756860000519,0.7073,4325.9,4325.8,0.6552]
[1756860002221,0.5065,4325.9,4325.8,0.9697]
[1756860002522,0.3021,4326.9,4325.9,0.3145]
[1756860002715,0.3021,4326.9,4326.3,4.29677809]
[1756860003018,0.5065,4326.5,4326.4,0.9697]
[1756860003422,0.7073,4326.5,4326.4,0.9697]
[1756860003722,0.7073,4326.5,4326.4,0.6552]
[1756860004219,0.7073,4327.0,4326.9,0.4182]
[1756860004415,0.7073,4327.0,4326.9,0.9697]
[1756860005221,3.2078,4327.5,4326.9,4.63747809]
[1756860005415,3.7143,4327.5,4327.4,0.4182]
[1756860005619,2.3021,4327.7,4327.4,4.63747809]
[1756860005815,0.7073,4327.6,4327.0,3.2078]
[1756860006017,0.7073,4327.1,4327.0,0.208]
[1756860006220,0.7073,4327.1,4327.0,0.6552]
[1756860007716,0.7073,4327.1,4327.0,0.445]
[1756860008319,0.5065,4327.1,4327.0,0.9697]
[1756860008520,0.3021,4327.6,4327.5,0.4182]
[1756860008725,0.5065,4327.6,4327.5,0.9697]
[1756860009127,0.7073,4327.6,4327.5,0.6552]
[1756860010928,0.7073,4327.6,4327.5,0.237]
[1756860011121,0.7073,4327.2,4327.1,0.6552]
[1756860011325,0.7073,4327.2,4327.1,0.9697]
[1756860011717,2.2966,4327.7,4327.1,0.6552]
[1756860011916,2.2966,4327.7,4327.6,0.7232]
[1756860011917,2.4965,4327.7,4327.6,0.7232]
[1756860012122,2.0,4327.7,4327.6,0.9602]
[1756860015927,2.0,4327.7,4327.6,4.168]
[1756860017834,2.0,4327.7,4327.6,44.968]
[1756860018031,2.0,4327.7,4327.6,50.303]
[1756860018335,2.2966,4327.7,4327.6,50.066]
[1756860018536,2.2966,4327.7,4327.6,49.9829]
[1756860018924,2.7021,4327.7,4327.6,8.7409]
[1756860019130,2.7021,4327.7,4327.6,5.572]
[1756860020733,2.7021,4327.7,4327.6,5.9751]
[1756860022134,2.7021,4327.7,4327.6,5.572]
[1756860023136,2.7021,4327.7,4327.6,0.237]
[1756860023836,2.4965,4327.7,4327.6,0.9602]
[1756860024231,2.0,4327.7,4327.6,0.9602]
[1756860026237,2.4965,4327.7,4327.6,0.9602]
[1756860026537,2.7021,4327.7,4327.6,0.6401]
[1756860026834,2.7021,4327.7,4327.6,0.9602]
[1756860027539,2.4965,4327.7,4327.6,0.9602]
[1756860027931,2.7021,4327.7,4327.6,0.9602]
[1756860028131,2.0,4327.7,4327.6,0.9602]
[1756860028938,2.2966,4327.7,4327.6,0.9602]
[1756860029138,2.0,4327.7,4327.6,6.2952]
[1756860029639,2.4965,4327.7,4327.6,6.2952]
[1756860030442,2.2966,4327.7,4327.6,6.2952]
[1756860030740,2.0,4327.7,4327.6,6.2952]
[1756860032544,2.4965,4327.7,4327.6,6.2952]
[1756860033431,2.0,4327.7,4327.6,6.2952]
[1756860034239,2.2966,4327.7,4327.6,6.2952]
[1756860034934,2.4965,4327.7,4327.6,6.2952]
[1756860037039,0.17,4328.9,4327.7,0.3201]
[1756860037246,0.5755,4328.9,4328.8,4.50047809]
[1756860037441,0.5755,4328.9,4328.8,4.73747809]
[1756860037841,0.5755,4328.9,4328.8,4.94247809]
[1756860038043,3.2078,4330.2,4328.9,0.3201]
[1756860038238,0.4055,4330.1,4330.0,0.7232]
[1756860038545,0.1212,4331.5,4330.0,7.83017809]
[1756860038546,3.2078,4331.3,4330.0,7.83017809]
[1756860038747,3.2078,4331.3,4330.7,4.18037809]
[1756860038748,0.4055,4330.8,4330.7,4.18037809]
[1756860039041,0.7021,4330.8,4330.7,0.237]
[1756860040238,0.7021,4330.8,4330.7,8.15027809]
[1756860040640,0.1999,4330.8,4330.7,8.15027809]
[1756860040943,0.2966,4331.1,4330.7,7.42707809]
[1756860041245,0.4965,4331.1,4331.0,0.7232]
[1756860041446,0.1999,4331.1,4331.0,0.9602]
[1756860041639,0.3163,4331.5,4331.1,0.313]
[1756860041842,0.7424,4331.5,4331.4,4.70457809]
[1756860042137,0.7424,4331.5,4331.4,4.94157809]
[1756860045944,0.4261,4331.5,4331.4,4.94157809]
[1756860046345,0.2147,4331.5,4331.4,4.94157809]
[1756860046546,0.7424,4331.5,4331.4,4.94157809]
[1756860046746,0.7424,4331.5,4331.4,0.9593]
[1756860048251,0.8687,4331.5,4330.9,0.313]
[1756860048448,0.7424,4331.5,4331.1,0.313]
[1756860048651,0.7424,4331.5,4330.7,3.2078]
[1756860048652,0.7424,4331.5,4331.4,0.7223]
[1756860048841,0.7424,4331.5,4331.4,0.9583]
[1756860050348,0.7424,4331.5,4331.4,0.236]
[1756860050654,0.7424,4331.5,4331.4,0.448]
[1756860051051,0.2147,4331.5,4331.4,0.9583]
[1756860052847,0.7424,4331.5,4331.3,3.2078]
[1756860053047,0.4261,4331.5,4331.4,0.9583]
[1756860053448,0.7424,4331.5,4331.4,0.9583]
[1756860054251,0.4261,4331.0,4330.9,0.525]
[1756860054450,0.7424,4331.0,4330.9,0.212]
[1756860054752,0.4261,4331.0,4330.9,0.236]
[1756860055151,0.3163,4330.9,4330.8,8.5428]
[1756860055360,0.7424,4330.9,4330.8,5.571]
[1756860055553,0.7424,4330.9,4330.8,6.2933]
[1756860056343,4.4261,4330.9,4330.3,3.2078]
[1756860056547,0.4261,4330.4,4330.3,0.7223]
[1756860056751,3.2078,4330.8,4330.3,0.6453]
[1756860056952,3.6339,4330.8,4330.7,0.4093]
[1756860057244,3.9502,4330.8,4330.7,0.9583]
[1756860058352,0.7424,4330.8,4330.7,0.9583]
[1756860058956,0.7424,4330.8,4330.7,0.4093]
[1756860059156,0.7424,4330.8,4330.7,0.448]
[1756860059951,0.7424,4330.8,4330.7,0.9583]
[1756860060751,0.2147,4330.8,4330.7,0.9583]
[1756860060949,0.4261,4330.8,4330.7,0.9583]
[1756860061149,0.7424,4330.8,4330.7,0.9583]
[1756860061346,0.3163,4331.2,4330.7,7.2078]
[1756860061550,0.7424,4330.8,4330.7,0.4093]
[1756860061851,0.7424,4330.8,4330.7,0.761]
[1756860062047,0.7424,4330.8,4330.4,0.313]
[1756860062255,0.7424,4329.8,4329.7,3.9301]
[1756860062452,0.7424,4329.8,4329.7,4.1661]
[1756860063248,0.7424,4329.8,4329.7,3.9301]
[1756860063453,0.7424,4329.8,4329.7,4.1661]
[1756860063854,0.4261,4329.8,4329.2,0.313]
[1756860064153,0.7424,4329.4,4329.3,0.9583]
[1756860064461,3.2078,4330.3,4329.3,0.9583]
[1756860064462,0.2147,4330.2,4330.1,0.7223]
[1756860064651,0.2147,4330.2,4330.1,0.9583]
[1756860065153,0.2147,4330.2,4329.7,0.313]
[1756860065154,0.7424,4330.2,4329.7,0.313]
[1756860065455,0.7424,4330.2,4329.8,0.236]
[1756860065662,0.7424,4330.2,4329.9,0.236]
[1756860065957,0.7424,4330.2,4329.7,0.236]
[1756860066655,0.3163,4330.1,4329.1,3.2078]
[1756860066854,0.7424,4329.2,4329.1,0.212]
[1756860067055,0.531,4329.2,4329.1,0.9583]
[1756860067256,0.3163,4329.6,4329.1,5.069843]
[1756860067556,0.2147,4329.8,4329.7,0.7223]
[1756860068155,3.2078,4330.4,4329.7,0.4093]
[1756860068359,0.2147,4330.3,4330.2,0.7223]
[1756860068547,0.7424,4330.3,4330.2,0.7223]
[1756860068752,0.4261,4330.3,4330.2,0.7223]
[1756860069556,3.2078,4330.9,4330.3,0.313]
[1756860069853,0.7424,4330.8,4330.7,0.212]
[1756860070364,0.7424,4330.8,4330.4,0.313]
[1756860070560,3.2078,4330.9,4330.1,0.236]
[1756860070858,0.3163,4330.8,4330.2,0.313]
[1756860071061,0.3163,4330.8,4330.1,0.236]
[1756860071062,0.7424,4330.8,4330.7,0.7223]
[1756860071659,0.3075,4331.3,4330.7,0.4093]
[1756860071961,0.712,4331.3,4331.2,0.6888]
[1756860073555,0.712,4331.3,4331.2,4.424543]
[1756860073956,0.5312,4331.0,4330.9,4.424543]
[1756860074155,0.8387,4331.0,4330.9,4.424543]
[1756860074554,5.30560001,4331.0,4330.9,4.424543]
[1756860074752,0.1267,4330.5,4330.3,4.424543]
[1756860074957,0.712,4330.4,4330.3,4.424543]
[1756860075152,0.712,4330.4,4330.3,4.618943]
[1756860075357,0.712,4330.4,4330.3,5.113343]
[1756860076060,0.236,4331.0,4330.9,0.3883]
[1756860076262,0.4322,4331.0,4330.9,5.113343]
[1756860076459,0.1962,4331.0,4330.9,5.113343]
[1756860076659,0.4045,4331.0,4330.9,5.113343]
[1756860076960,0.712,4331.0,4330.9,5.113343]
[1756860077759,0.3075,4331.4,4330.9,4.812843]
[1756860077954,3.2078,4331.7,4331.2,0.3883]
[1756860078156,3.6123,4331.7,4331.6,4.919443]
[1756860078355,4.50221696,4331.7,4331.6,4.919443]
[1756860078856,0.4045,4331.7,4331.6,5.113343]
[1756860079855,0.712,4331.7,4331.6,4.618943]
[1756860080055,0.712,4331.7,4331.6,4.424543]
[1756860081967,0.98719242,4331.7,4331.3,0.236]
[1756860082159,1.09849242,4331.6,4331.5,0.4949]
[1756860082358,1.29469242,4331.6,4331.5,0.4949]
[1756860083466,0.712,4331.4,4331.3,0.4949]
[1756860083661,3.2078,4331.8,4331.2,3.2078]
[1756860083662,0.3075,4331.3,4331.2,3.2078]
[1756860083862,0.712,4331.3,4331.2,3.2078]
[1756860084164,0.4045,4330.9,4330.8,6.0238]
[1756860084661,0.1962,4330.9,4330.8,6.0238]
[1756860085569,0.1962,4330.9,4330.8,6.2598]
[1756860085770,0.1962,4330.9,4330.8,6.0238]
[1756860086067,0.4045,4330.9,4330.8,6.2598]
[1756860086873,0.5355,4331.7,4330.9,0.3005]
[1756860087063,0.1962,4331.0,4330.9,0.9248]
[1756860087769,3.4438,4331.8,4331.0,0.3005]
[1756860088066,0.89054035,4331.7,4331.0,0.3005]
[1756860088270,0.98754035,4331.6,4331.5,0.1944]
[1756860088569,1.29504035,4331.6,4331.5,0.4949]
[1756860088771,1.29504035,4331.6,4331.5,0.6888]
[1756860089076,1.29504035,4331.6,4331.1,4.424543]
[1756860089268,0.1962,4331.2,4331.1,4.812843]
[1756860089568,0.58304035,4331.5,4330.6,3.2078]
[1756860089569,3.2078,4331.3,4330.6,3.6382]
[1756860089870,0.98755519,4331.2,4331.1,0.6888]
[1756860090372,0.98755519,4331.2,4330.1,5.335]
[1756860090373,0.3075,4330.6,4330.1,3.5083]
[1756860090563,0.3075,4330.7,4330.1,3.8966]
[1756860090758,3.9198,4330.8,4330.7,0.1944]
[1756860090961,3.79094555,4330.8,4330.7,0.6888]
[1756860091168,3.5153,4331.5,4330.7,0.3883]
[1756860091368,0.77930324,4331.4,4331.3,0.1944]
[1756860091669,1.29510324,4331.4,4331.3,0.4949]
[1756860092461,1.29510324,4331.4,4330.5,0.359]
[1756860092462,0.4045,4331.2,4331.1,0.3005]
[1756860092771,0.4045,4331.2,4331.1,0.6888]
[1756860093070,0.712,4331.2,4331.1,0.6888]
[1756860093463,0.712,4331.2,4331.1,0.4949]
[1756860093660,0.712,4331.2,4330.2,0.4949]
[1756860093661,0.4045,4330.3,4330.2,0.4949]
[1756860093962,0.712,4330.3,4330.2,0.4949]
[1756860094357,0.1962,4330.3,4330.2,0.6888]
[1756860094958,3.2078,4331.0,4330.3,0.3005]
[1756860095174,0.58318818,4330.9,4330.8,0.6888]
[1756860095472,0.58318818,4330.9,4330.5,4.424543]
[1756860095473,0.1962,4331.0,4330.9,0.6888]
[1756860095664,0.77935266,4331.0,4330.9,0.6888]
[1756860095965,0.98765266,4331.0,4330.5,0.3005]
[1756860096170,0.712,4330.3,4330.2,0.3005]
[1756860096570,0.712,4330.3,4330.2,0.4949]
[1756860097369,0.712,4329.9,4329.8,0.236]
[1756860097668,0.712,4329.9,4329.8,0.1944]
[1756860097862,0.3075,4329.6,4329.3,0.3005]
[1756860098062,0.3075,4329.3,4328.5,3.3308]
[1756860098262,0.1962,4328.8,4328.7,0.6888]
[1756860099168,0.3075,4329.3,4328.8,0.3005]
[1756860099365,0.712,4329.3,4329.2,0.4949]
[1756860100367,0.4045,4329.3,4329.2,0.6888]
[1756860100967,0.712,4329.3,4328.6,0.3005]
[1756860101172,0.712,4329.3,4328.7,0.236]
[1756860101374,0.712,4329.3,4329.2,0.1944]
[1756860101674,0.4045,4329.3,4329.2,0.4925]
[1756860101971,0.4045,4329.3,4329.2,0.7014]
[1756860102173,0.6995,4329.3,4329.2,0.7014]
[1756860102375,0.6995,4329.3,4329.2,0.4925]
[1756860102771,0.295,4329.2,4328.9,0.2981]
[1756860102967,0.2097,4329.0,4328.9,0.4062]
[1756860103278,0.2097,4329.0,4328.9,0.4954]
[1756860103279,0.7031,4329.0,4328.9,0.4954]
[1756860103569,0.7031,4329.0,4328.5,3.3308]
[1756860103570,0.4081,4329.0,4328.5,3.2078]
[1756860103770,0.4081,4328.7,4328.6,0.1973]
[1756860104076,0.4081,4328.7,4328.6,0.7043]
[1756860104576,0.236,4329.5,4328.5,3.2078]
[1756860104577,0.295,4329.7,4328.7,0.2981]
[1756860104780,0.6441,4329.6,4329.5,0.1973]
[1756860105076,0.9391,4329.6,4328.9,0.2981]
[1756860105277,0.4081,4329.6,4329.5,0.7043]
[1756860105579,0.7031,4329.6,4329.5,0.1973]
[1756860105778,0.7031,4329.6,4329.5,0.7043]
[1756860105779,0.4081,4329.6,4329.5,0.7043]
[1756860106077,0.2097,4329.7,4329.6,0.7043]
[1756860106878,0.7031,4329.7,4329.6,0.7043]
[1756860107066,0.4081,4329.7,4329.6,0.7043]
[1756860107566,0.4081,4329.7,4328.8,4.424543]
[1756860107567,0.7031,4329.7,4329.1,0.2981]
[1756860108170,0.2097,4328.7,4328.6,0.7043]
[1756860111981,0.5331,4329.5,4329.4,0.1973]
[1756860112177,0.8281,4329.5,4329.4,0.4954]
[1756860112975,0.8281,4329.5,4328.6,0.2981]
[1756860114978,0.295,4328.6,4328.5,3.2078]
[1756860115182,0.7031,4328.3,4328.2,0.4954]
[1756860115783,0.4081,4328.3,4328.2,0.7043]
[1756860116078,0.531,4328.7,4328.3,0.2981]
[1756860116279,0.9391,4328.7,4328.6,0.4954]
[1756860116480,0.9391,4328.7,4328.1,0.2981]
[1756860117178,0.7031,4328.7,4328.1,0.2981]
[1756860117483,0.2097,4328.1,4328.0,3.614]
[1756860117676,0.2097,4328.1,4328.0,0.4062]
[1756860117875,0.295,4328.5,4328.0,0.4062]
[1756860118071,3.2078,4328.8,4328.0,0.4062]
[1756860118072,3.5028,4328.8,4328.1,0.2981]
[1756860118273,0.6441,4328.7,4328.6,0.4954]
[1756860118474,0.9391,4328.7,4328.1,0.2981]
[1756860118880,0.236,4328.6,4328.1,0.2981]
[1756860119081,0.2097,4328.2,4328.1,0.7043]
[1756860120073,0.4081,4328.2,4328.1,0.7043]
[1756860120278,0.7031,4327.7,4327.6,1.9872217]
[1756860120480,5.50140512,4327.7,4326.8,0.2981]
[1756860120679,0.7031,4326.9,4326.8,0.4954]
[1756860120979,0.4081,4326.9,4326.8,0.7043]
[1756860121787,0.7031,4326.9,4326.8,0.2981]
[1756860121987,0.4081,4326.9,4326.8,0.7043]
[1756860122179,0.236,4327.0,4326.8,0.7043]
[1756860122378,0.4457,4327.0,4326.9,0.7043]
[1756860122576,0.6441,4327.0,4326.9,0.7043]
[1756860122982,0.9391,4327.0,4326.9,0.7043]
[1756860123187,0.9391,4327.0,4326.4,0.2981]
[1756860124588,0.6441,4327.0,4326.3,3.2078]
[1756860124784,0.7031,4326.4,4326.3,3.2078]
[1756860125182,0.7031,4326.4,4326.3,3.7032]
[1756860125388,0.2097,4326.4,4326.3,3.9121]
[1756860125888,0.4457,4326.7,4326.6,0.7043]
[1756860126091,0.6441,4326.7,4326.6,0.7043]
[1756860127289,0.7031,4326.7,4326.6,0.7043]
[1756860128093,0.7031,4326.7,4325.9,0.2981]
[1756860128987,3.2078,4326.8,4326.6,0.4062]
[1756860129187,3.5028,4326.8,4326.7,0.4954]
[1756860129387,4.1469,4326.8,4326.7,0.4954]
[1756860129587,3.9109,4326.8,4326.0,0.1277]
[1756860129791,0.4081,4326.2,4326.1,0.4954]
[1756860129995,3.4438,4326.8,4326.1,0.7043]
[1756860130293,3.7388,4326.8,4326.2,0.2981]
[1756860131195,4.1469,4326.8,4326.7,0.4954]
[1756860131695,4.1469,4326.8,4325.9,0.3054]
[1756860131898,4.1469,4326.8,4326.0,0.1231]
[1756860132094,3.9109,4326.8,4326.7,0.5074]
[1756860132288,4.1469,4326.8,4326.7,0.5074]
[1756860133593,4.1469,4326.8,4326.1,0.3054]
[1756860134392,4.1469,4326.8,4325.3,0.3972]
[1756860134393,0.7338,4325.4,4325.3,0.3972]
[1756860134593,0.9708,4325.4,4324.7,3.2078]
[1756860134794,0.9708,4325.4,4324.8,0.3054]
[1756860135496,0.237,4325.4,4325.3,0.3972]
[1756860135700,0.237,4325.4,4325.3,0.7026]
[1756860135892,3.2078,4325.6,4325.3,0.7026]
[1756860136093,3.6569,4325.6,4325.5,0.3972]
[1756860136293,3.4199,4325.6,4325.5,0.7026]
[1756860136491,3.6569,4325.6,4325.5,0.7026]
[1756860136689,3.4199,4325.6,4325.5,0.7026]
[1756860136892,3.6569,4325.6,4325.5,0.7026]
[1756860137100,3.4199,4325.6,4325.5,0.7026]
[1756860137400,3.6569,4325.6,4325.5,0.7026]
[1756860137603,0.3112,4325.5,4324.3,0.3054]
[1756860137902,0.4226,4324.4,4324.3,0.5074]
[1756860138098,0.9708,4324.4,4323.7,3.2078]
[1756860138300,0.9708,4324.4,4323.8,0.3054]
[1756860138597,0.7338,4323.9,4323.8,0.7026]
[1756860138802,0.9708,4323.9,4323.8,0.5074]
[1756860139194,0.6596,4323.9,4323.8,0.7026]
[1756860140499,0.2121,4323.9,4323.8,0.7026]
[1756860140699,0.237,4324.1,4324.0,0.7026]
[1756860141001,0.4491,4324.1,4324.0,0.7026]
[1756860141404,0.6596,4324.1,4324.0,0.7026]
[1756860142400,0.4226,4324.1,4324.0,0.7026]
[1756860142699,0.6596,4324.1,4324.0,0.7026]
[1756860144597,0.4226,4324.1,4324.0,0.7026]
[1756860144904,0.6596,4324.1,4324.0,0.7026]
[1756860145107,0.9708,4324.1,4324.0,0.7026]
[1756860146507,0.4226,4324.1,4324.0,0.7026]
[1756860146806,0.4491,4324.8,4324.7,0.7026]
[1756860147405,1.23894329,4324.8,4324.7,0.7026]
[1756860148110,0.3112,4324.7,4323.8,0.3054]
[1756860148306,0.57934329,4324.6,4323.8,0.3054]
[1756860148605,0.6596,4324.5,4324.4,0.5074]
[1756860148804,1.23894329,4324.5,4324.4,0.7026]
[1756860150105,0.57934329,4324.5,4324.4,0.7026]
[1756860150306,3.2078,4325.2,4324.5,0.5203]
[1756860150498,0.817412,4325.1,4325.0,0.7026]
[1756860150700,1.029512,4325.1,4325.0,0.7026]
[1756860151305,1.551212,4325.1,4324.4,0.3054]
[1756860151506,0.580412,4325.0,4324.4,0.3054]
[1756860151698,0.4226,4324.5,4324.4,0.7026]
[1756860151900,0.9708,4324.5,4324.4,0.5074]
[1756860153606,0.3112,4325.1,4324.5,0.3054]
[1756860153805,0.58054692,4325.0,4324.9,0.7026]
[1756860154007,0.79264692,4325.0,4324.9,0.7026]
[1756860154507,0.58054692,4325.0,4324.9,0.7026]
[1756860154810,0.81754692,4325.0,4324.9,0.7026]
[1756860155108,1.02964692,4325.0,4324.9,0.7026]
[1756860156310,1.55134692,4325.0,4324.9,0.5074]
[1756860158603,0.3112,4324.3,4323.8,0.3054]
[1756860158911,0.7338,4323.9,4323.8,0.5074]
[1756860160311,1.31520931,4323.9,4323.8,0.5074]
[1756860161411,1.00400931,4323.9,4323.7,3.2078]
[1756860161714,0.3035,4323.7,4323.5,0.3006]
[1756860161918,0.2042,4323.6,4323.5,0.7094]
[1756860162211,0.2042,4324.4,4324.3,0.7094]
[1756860162613,1.00092966,4324.4,4324.3,0.7094]
[1756860163414,1.23792966,4324.4,4324.3,0.7094]
[1756860164608,1.00092966,4324.4,4324.3,0.7094]
[1756860164913,1.23792966,4324.4,4324.3,0.7094]
[1756860168511,1.48150858,4325.7,4324.6,0.3006]
[1756860168818,0.7225,4324.8,4324.2,0.3006]
[1756860169410,0.7225,4324.8,4324.7,0.4088]
[1756860169613,0.237,4324.8,4324.7,0.7094]
[1756860170214,0.4412,4324.8,4324.7,0.7094]
[1756860170407,0.2042,4324.8,4324.7,0.7094]
[1756860170604,3.98037488,4325.9,4324.8,0.3006]
[1756860170605,3.2078,4325.1,4324.8,0.3006]
[1756860170807,0.237,4325.1,4325.0,0.8262]
[1756860171313,0.656,4325.1,4325.0,0.7094]
[1756860171509,0.9595,4325.1,4325.0,0.7094]
[1756860171914,0.9595,4325.1,4325.0,0.3006]
[1756860172217,0.9595,4325.1,4324.5,0.3006]
[1756860172417,0.419,4324.6,4324.5,0.5081]
[1756860172617,0.419,4324.6,4324.5,0.7094]
[1756860173320,0.7225,4324.6,4324.5,0.7094]
[1756860174120,0.419,4324.6,4324.5,0.7094]
[1756860178626,0.237,4325.0,4324.9,0.4088]
[1756860178821,0.4412,4325.0,4324.9,0.7094]
[1756860179126,0.656,4325.0,4324.9,0.7094]
[1756860179426,0.9595,4325.0,4324.9,0.7094]
[1756860180525,1.53462223,4325.0,4324.9,0.7094]
[1756860182935,1.53462223,4325.0,4324.9,0.5081]
[1756860183424,1.53462223,4325.0,4324.4,0.3006]
[1756860183629,0.9595,4325.0,4324.4,0.3006]
[1756860183819,0.3035,4324.4,4323.6,0.3006]
[1756860184021,0.419,4323.7,4323.6,0.7094]
[1756860187119,0.237,4324.3,4323.6,0.7094]
[1756860187318,0.5405,4324.3,4323.6,0.4088]
[1756860187526,0.9595,4324.3,4324.2,0.2075]
[1756860187824,1.53215749,4324.3,4324.2,0.5081]
[1756860188929,1.29515749,4324.3,4324.2,0.5081]
[1756860190923,3.2078,4324.7,4324.2,0.4088]
[1756860191121,3.2078,4324.7,4324.6,0.4088]
[1756860191323,3.2078,4324.7,4324.6,0.7094]
[1756860192024,3.415,4324.7,4324.6,0.7094]
[1756860194029,3.623,4324.7,4324.6,0.7094]
[1756860195724,3.9242,4324.7,4324.0,0.1168]
[1756860195923,0.3012,4324.6,4324.1,0.62265]
[1756860196124,3.2078,4324.7,4324.1,0.3914]
[1756860196519,3.2078,4325.3,4324.6,0.3914]
[1756860196724,0.9524,4325.2,4325.1,0.1965]
[1756860196925,0.7164,4325.2,4325.1,0.6961]
[1756860197230,0.4152,4325.2,4325.1,0.6961]
[1756860198425,0.4152,4325.2,4324.6,0.3047]
[1756860198426,0.7164,4325.2,4324.6,0.3047]
[1756860198626,0.7164,4325.2,4324.6,0.23121999]
[1756860198835,0.7164,4325.2,4325.1,0.1965]
[1756860199034,0.7164,4325.2,4325.1,0.5012]
[1756860200137,0.7164,4325.2,4325.1,0.3047]
[1756860200524,4.67419902,4325.4,4324.7,3.2078]
[1756860200720,0.7164,4324.7,4324.6,0.5012]
[1756860200921,0.4152,4324.4,4324.3,0.5012]
[1756860201124,0.7164,4324.4,4324.3,0.5012]
[1756860201426,0.4152,4324.4,4324.3,0.6961]
[1756860202131,0.236,4324.8,4324.4,0.3047]
[1756860202326,0.2072,4324.5,4324.4,0.4996]
[1756860202531,0.2072,4324.5,4324.4,0.6961]
[1756860204733,0.236,4324.8,4324.5,0.3047]
[1756860205128,0.4432,4324.8,4324.7,0.6961]
[1756860205436,0.6512,4324.8,4324.7,0.6961]
[1756860205632,0.9524,4324.8,4324.7,0.6961]
[1756860205828,3.2078,4325.3,4324.8,0.3047]
[1756860206037,0.4432,4325.6,4325.5,0.1965]
[1756860206331,0.2072,4325.6,4325.5,0.6961]
[1756860207331,0.4152,4325.6,4325.5,0.6961]
[1756860208636,0.2072,4325.6,4325.5,0.6961]
[1756860212231,0.3012,4325.5,4325.0,0.3047]
[1756860212434,0.7164,4325.1,4324.8,3.2078]
[1756860212634,3.2078,4325.4,4324.9,0.5012]
[1756860212635,0.7164,4325.0,4324.9,0.5012]
[1756860212836,0.4152,4325.0,4324.1,3.2078]
[1756860213132,0.2072,4324.3,4324.2,0.6961]